Cogmind - Beta 9.3 @@@ ROGUE MODE // 2019.12.21 @ 14:53:02 // Winter2019/RPGLIKE Player: INSYN Result: Destroyed by G-34 Mercenary with Small Laser Performance ------------- Evolutions (1) 500 Regions Visited (3) 600 Robots Destroyed (24) 120 Value Destroyed (480) 480 Prototype IDs (2) 40 Alien Tech Used (0) 0 Bonus (7) 7 TOTAL SCORE: 1747 Bonus ------- Follower Combat Kills 7 Cogmind --------- Core Integrity 0/600 Matter 192/300 Energy 124/125 System Corruption 0% Temperature Cool (6) Movement Walking (120) Location -9/Materials Parts ------- > --- POWER (1) -------- Light Ion Engine > --- PROPULSION (2) --- Aluminum Leg Aluminum Leg > --- UTILITY (1) ------ Medium Armor Plating > --- WEAPON (2) ------- Assault Rifle Assault Rifle > --- INVENTORY (2) ---- Medium Armor Plating Light Assault Rifle Peak State ------------ > --- POWER ------------ Light Nuclear Core > --- PROPULSION ------- Aluminum Leg Aluminum Leg > --- UTILITY ---------- Weapon Shielding > --- WEAPON ----------- Assault Rifle > --- INVENTORY -------- Assault Rifle Light Assault Rifle [Rating: 7] Favorites ----------- Power Light Ion Engine Engine Light Ion Engine Power Core Light Nuclear Core Propulsion Aluminum Leg Leg Aluminum Leg Utility Weapon Shielding Protection Weapon Shielding Weapon Assault Rifle Ballistic Gun Assault Rifle Build | -11 -10 -10 -9 ------- Run | Scr Mat Min Mat Slots Evolved 2 | . 1 . 1 Power . | . . . . Propulsion 1 | . 1 . . Utility . | . . . . Weapon 1 | . . . 1 Parts Attached 14 | 3 3 5 3 Power 3 | 1 . 2 . Engine 2 | 1 . 1 . Core 1 | . . 1 . Reactor . | . . . . Propulsion 5 | 1 1 2 1 Treads . | . . . . Leg 5 | 1 1 2 1 Wheel . | . . . . Hover . | . . . . Flight . | . . . . Utility 3 | . 2 . 1 Device . | . . . . Storage . | . . . . Processor . | . . . . Hackware . | . . . . Protection 3 | . 2 . 1 Artifact . | . . . . Weapon 3 | 1 . 1 1 Energy Gun . | . . . . Energy Cannon . | . . . . Ballistic Gun 3 | 1 . 1 1 Ballistic Cannon . | . . . . Launcher . | . . . . Special Weapon . | . . . . Impact Weapon . | . . . . Slashing Weapon . | . . . . Piercing Weapon . | . . . . Special Melee Weapon . | . . . . Unidentified Prototypes . | . . . . Parts Lost 1 | . . 1 . Power 1 | . . 1 . Propulsion . | . . . . Utility . | . . . . Weapon . | . . . . Highest Loss Streak 1 | . . 1 . Average Slot Usage (%) 98 | . 97 99 97 Engine 16 | . 20 15 16 Core 2 | . . 4 . Leg 38 | . 38 40 30 Protection 19 | . 18 20 16 Ballistic Gun 21 | . 20 20 33 Naked Turns . | . . . . Heaviest Build 14 | 4 5 8 14 Greatest Support 20 | 10 20 20 20 Greatest Overweight (x) . | . . . . Average Overweight (x) . | . . . . Largest Inventory Capacity 2 | . 2 2 2 Average Capacity 1 | . 1 2 2 Most Carried 2 | . 2 2 2 Average Carried 1 | . 1 1 1 Final Capacity 2 | . 2 2 2 Final Carried 2 | . 2 2 2 Class Distribution -------------------- 100% | Mutant Dominant Class ---------------- Mutant | -10/Materials Mutant | -10/Mines Mutant | -9/Materials Resources | -11 -10 -10 -9 ----------- Run | Scr Mat Min Mat Matter Collected 495 | 230 67 198 . Remotely . | . . . . Salvage Created 502 | . 64 284 154 Parts 46 | . 12 18 16 Haulers Intercepted . | . . . . Recyclers Shooed . | . . . . Parts Field Recycled . | . . . . Retrieved Matter . | . . . . Parts Self-Destructed . | . . . . Prevented . | . . . . Kills | -11 -10 -10 -9 ------- Run | Scr Mat Min Mat Combat Hostiles Destroyed 22 | . 7 10 5 Guns 22 | . 7 10 5 Classes Destroyed 5 | . 2 . 3 Watcher 2 | . . . 2 Swarmer 15 | . 6 6 3 Grunt 5 | . 1 4 . Duelist 1 | . . . 1 Sentry 1 | . . . 1 Best Kill Streak 6 | . 3 3 6 Combat Bots Only 4 | . 3 3 4 Max Kills in Single Turn 1 | . 1 1 1 Gunslinging . | . . . . Exploded . | . . . . Melee . | . . . . Uniques/NPCs Destroyed . | . . . . Combat | -11 -10 -10 -9 -------- Run | Scr Mat Min Mat Damage Taken 1281 | . 268 658 355 Core 990 | . 193 517 280 Absorbed by Shields . | . . . . Redirected to Core 729 | . 155 324 250 Core Remaining (%) 72 | 100 . 45 . Volleys Fired 128 | . 37 65 26 Largest 1 | . 1 1 1 Hottest 20 | . 20 20 20 Shots Fired 128 | . 37 65 26 Gun 128 | . 37 65 26 Cannon . | . . . . Launcher . | . . . . Special . | . . . . Kinetic 128 | . 37 65 26 Thermal . | . . . . Explosive . | . . . . Electromagnetic . | . . . . Robot Hit Streak 19 | . 8 13 19 Robot Miss Streak 4 | . 4 3 1 Penetration Max . | . . . . Secondary Targets . | . . . . Shots Hit Robots 94 | . 24 46 24 Core Hits 40 | . 11 18 11 Critical Hits . | . . . . Critical Kills . | . . . . Critical Parts Destroyed . | . . . . Melee Attacks . | . . . . Impact . | . . . . Slashing . | . . . . Piercing . | . . . . Sneak Attacks . | . . . . Combat Hostiles . | . . . . Follow-up Attacks . | . . . . Damage Inflicted 1002 | . 205 507 290 Guns 1002 | . 205 507 290 Cannons . | . . . . Explosions . | . . . . Melee . | . . . . Ramming . | . . . . Kinetic 1002 | . 205 507 290 Thermal . | . . . . Explosive . | . . . . Electromagnetic . | . . . . Impact . | . . . . Slashing . | . . . . Piercing . | . . . . Highest Corruption . | . . . . Average Corruption . | . . . . Corruption Purged . | . . . . Overload Shots . | . . . . Overflow Damage . | . . . . Projectiles . | . . . . Explosions . | . . . . Melee . | . . . . Knockbacks . | . . . . Impact . | . . . . Kinetic . | . . . . Secondary . | . . . . Self-Inflicted Damage . | . . . . Shots . | . . . . Rammed . | . . . . Targets Rammed . | . . . . Kicked . | . . . . Crushed . | . . . . Highest Temperature 6 | . 6 5 2 Average Temperature 4 | . 6 5 2 Received Heat Transfer 375 | . 42 228 105 Siege Activations . | . . . . Robots Corrupted . | . . . . Combat Hostiles . | . . . . Parts Fried . | . . . . Impact Corruptions . | . . . . Robots Melted . | . . . . Combat Hostiles . | . . . . Parts Melted . | . . . . Heat Transferred . | . . . . Parts Sabotaged . | . . . . Parts Stolen . | . . . . Parts Stripped . | . . . . Power Chain Reactions . | . . . . Missiles Intercepted . | . . . . Alert | -11 -10 -10 -9 ------- Run | Scr Mat Min Mat Peak Influence 206 | . 175 105 206 Average Influence 48 | . 84 31 67 Maximum Alert Level 1 | . . . 1 Low Security (%) 99 | 100 100 100 96 Level 1 . | . . . 3 Level 2 . | . . . . Level 3 . | . . . . Level 4 . | . . . . Level 5 . | . . . . High Security . | . . . . Max Security . | . . . . Squads Dispatched 1 | . 1 . . Investigation . | . . . . Extermination . | . . . . Reinforcement 1 | . 1 . . Assault . | . . . . Garrison . | . . . . Intercept . | . . . . Construction Impeded . | . . . . Haulers Reinforced . | . . . . Stealth | -11 -10 -10 -9 --------- Run | Scr Mat Min Mat Distress Signals 2 | . 1 . 1 Communications Jammed . | . . . . Distress Signals . | . . . . Times Spotted 33 | . 11 12 10 Peak Tracking Total 8 | . 4 3 8 Tactical Retreats 3 | . 1 2 . Traps | -11 -10 -10 -9 ------- Run | Scr Mat Min Mat Traps Triggered . | . . . . Indirectly . | . . . . Trap Hack Attempts . | . . . . Triggered . | . . . . Disarmed . | . . . . Reprogrammed . | . . . . Reused . | . . . . Traps Extracted . | . . . . Installed . | . . . . Triggered . | . . . . Machines | -11 -10 -10 -9 ---------- Run | Scr Mat Min Mat Machines Disabled 1 | . . 1 . Max in Single Turn 1 | . . 1 . Machines Sabotaged . | . . . . Garrisons Compromised . | . . . . Overloaded Fab Kills . | . . . . Fab Network Shutdowns . | . . . . Hacking | -11 -10 -10 -9 --------- Run | Scr Mat Min Mat Machines Accessed 6 | . 3 . 3 Terminals 3 | . 2 . 1 Fabricators . | . . . . Repair Stations 2 | . 1 . 1 Recycling Units . | . . . . Scanalyzers 1 | . . . 1 Garrison Access . | . . . . Total Hacks 10 | . 5 . 5 Successful 9 | . 4 . 5 Failed 1 | . 1 . . Catastrophic . | . . . . Database Lockouts . | . . . . Manual . | . . . . Terminals 4 | . 3 . 1 Fabricators . | . . . . Repair Stations 4 | . 2 . 2 Recycling Units . | . . . . Scanalyzers 2 | . . . 2 Garrison Access . | . . . . Terminal Hacks 3 | . 2 . 1 Record 1 | . . . 1 Prototype ID Bank 1 | . 1 . . Surveillance Status 1 | . 1 . . Fabricator Hacks . | . . . . Repair Station Hacks 4 | . 2 . 2 Scan Component 2 | . 1 . 1 Repair 2 | . 1 . 1 Recycling Unit Hacks . | . . . . Scanalyzer 2 | . . . 2 Insert Component 1 | . . . 1 Analyze 1 | . . . 1 Garrison Access Hacks . | . . . . Unauthorized Hacks . | . . . . Terminals . | . . . . Fabricators . | . . . . Repair Stations . | . . . . Recycling Units . | . . . . Scanalyzers . | . . . . Garrison Access . | . . . . Data Cores Recovered . | . . . . Used . | . . . . Hacking Detections 3 | . 2 . 1 Full Trace Events . | . . . . Feedback Events . | . . . . Feedback Blocked . | . . . . Robot Schematics Acquired . | . . . . Robots Built . | . . . . Matter . | . . . . Time . | . . . . Total Robot Build Rating . | . . . . Part Schematics Acquired 1 | . . . 1 Parts Built . | . . . . Matter . | . . . . Time . | . . . . Total Part Build Rating . | . . . . Parts Repaired 2 | . 1 . 1 Time 52 | . 26 . 26 Parts Recycled . | . . . . Recycled Matter . | . . . . Retrieved Matter . | . . . . Retrieved Components . | . . . . Parts Scanalyzed 1 | . . . 1 Part Schematics Acquired 1 | . . . 1 Parts Damaged . | . . . . Bothacking | -11 -10 -10 -9 ------------ Run | Scr Mat Min Mat Used RIF Installer . | . . . . Robots Hacked . | . . . . Non-combat . | . . . . Combat . | . . . . Robot Hacks Applied . | . . . . Relay Couplers Released . | . . . . Robots Rewired . | . . . . Allies Hacked . | . . . . Hacks Repelled . | . . . . Allies | -11 -10 -10 -9 -------- Run | Scr Mat Min Mat Total Allies 2 | . . 2 . Largest Group 2 | . . 2 2 Highest-Rated Group 42 | . . 42 42 Highest-Rated Ally 31 | . . 31 31 Total Orders . | . . . . Ally Attacks 8 | . . . 8 Total Damage 167 | . . . 167 Kills 1 | . . . 1 Allies Corrupted . | . . . . Allies Melted . | . . . . Intel | -11 -10 -10 -9 ------- Run | Scr Mat Min Mat Robot Analysis Total . | . . . . Derelict Logs Recovered 1 | . . 1 . Drone Launches . | . . . . Drone Recoveries . | . . . . Exploration | -11 -10 -10 -9 ------------- Run | Scr Mat Min Mat Turns Passed 1755 | 42 487 1061 165 Spaces Moved 1030 | 39 302 621 68 Core 12 | 12 . . . Treads . | . . . . Legs 1018 | 27 302 621 68 Wheels . | . . . . Hover . | . . . . Flight . | . . . . Fastest Speed 50 | 50 120 120 120 Average Speed 119 | 98 120 120 120 Slowest Speed 120 | 120 120 120 120 Overloaded Moves . | . . . . Propulsion Burnouts . | . . . . Robots Hopped . | . . . . Cave-ins Triggered . | . . . . Exploration Rate (%) 38 | 3 48 94 9 Regions Visited 3 Branch Regions 1 Pre-discovered Areas . | . . . . Known Exits Taken . | . . . . Unknown Exits Taken 3 | 1 1 1 . Scrap Searched 1 | . . 1 . Spaces Dug . | . . . . Terrain Destroyed . | . . . . Melee . | . . . . Projectile . | . . . . AOE . | . . . . Actions | -11 -10 -10 -9 --------- Run | Scr Mat Min Mat Total 1439 | 41 396 876 126 Wait 241 | . 43 172 26 Move 1027 | 38 301 620 68 Hop . | . . . . Pick Up 6 | . 3 1 2 Fast Attach 8 | 3 2 2 1 Attach 2 | . 1 . 1 Detach . | . . . . Swap 4 | . . 3 1 Drop 5 | . . 4 1 Fire 128 | . 37 65 26 Melee . | . . . . Ram . | . . . . Kick . | . . . . Crush . | . . . . Escape Stasis . | . . . . Rewire . | . . . . Trap . | . . . . Miscellaneous 18 | . 9 9 . Route ------- -11/Scrapyard -10/Materials (discovered 2 exits: *Mat / [*Min]) -10/Mines -9/Materials History --------- Turn | Location | Event 7 | -11/Scrapyard | Discovered new exit (range 15) 43 | -11/Scrapyard | Entered Materials 83 | -10/Materials | Upgraded with Propulsion slot (x1) 291 | -10/Materials | Discovered new exit (range 15) 301 | -10/Materials | Build established: Mutant 353 | -10/Materials | Discovered new exit (range 6) 399 | -10/Materials | Repaired Weapon Shielding 530 | -10/Materials | Entered Mines 703 | -10/Mines | Reached level 2 1100 | -10/Mines | Core integrity fell below 50% 1577 | -10/Mines | Discovered new exit (range 5) 1591 | -10/Mines | Entered Materials 1591 | -9/Materials | Accompanied by 2 allies 1592 | -9/Materials | Core integrity fell below 50% 1593 | -9/Materials | Reached level 3 1593 | -9/Materials | Upgraded with Weapon slot (x1) 1596 | -9/Materials | Led the pair of lost Derelicts to an unsafe place 1676 | -9/Materials | Repaired Aluminum Leg 1716 | -9/Materials | Reached level 4 1741 | -9/Materials | Core integrity fell below 20% 1756 | -9/Materials | Destroyed by G-34 Mercenary with Small Laser Last Messages --------------- 01707_ R-06 Scavenger collects Visual Processing Unit. 01710_ S-10 Pest destroyed. 01710_ R-06 Scavenger collects Flight Unit. 01712_ S-10 Pest destroyed. 01712_ R-06 Scavenger collects Lgt. Ion Engine. 01716_ Reached level 4. 01716_ S-10 Pest destroyed. 01717_ R-06 Scavenger collects Flight Unit. 01720_ S-10 Pest destroyed. 01720_ R-06 Scavenger collects Flight Unit. 01724_ R-06 Scavenger collects Lgt. Assault Rifle. 01726_ Y-45 Defender destroyed. 01728_ W-16 Scout destroyed. 01728_ HJ-PNM(g) destroyed. 01729_ K-01 Serf collects debris. 01748_ R-06 Scavenger collects Lgt. Treads. 01750_ L-31 Rogue destroyed. 01750_ K-01 Serf collects debris. 01751_ R-06 Scavenger collects Imp. Ion Engine. 01753_ K-01 Serf collects debris. Map ----- +----------------------------------------------------+ | ??????????????????????????????????????? | | ???????????????????#################### | | ???????????????????# # # # | | ???????????????????# " # # "" # | | ???????????????????# """ # # """ # | | ???????????????????# """ # / S" # | | ???????????????????# """ # # # | | ???????????????????# "" + # # | | ???????????????????# """ # ##+##### | | ???????????????????# "" ###### #???? | | ???????????????????# "" #????# #???? | | ???????????????????# " #????# #???? | | ???????????????????# #????# #???? | | ???????????????????#########????# #???? | | ????????????????????????????????# #???? | | ????????????????????###########?# #???? | | ????????????????????# """T""" #?# #???? | | ????????????????????# #?# #???? | | ????????????????????# #?# #???? | | ????????????????????# """ """ #?# #???? | | ????????????????????# """ """ #?# #???? | | ????????????????????# """ """ #?# #???? | | ????????????????????# ### #???? | | ????????????????????# + #???? | | ????????????????#+########+#### #???? | | ?????????? %%%%% !%! @%[### #???? | | ?????????? =k% = !=%g ####? | | ?????????? =* r *=m """#? | | ???????????#+########### """ R"#? | | ???????????????????????#k """ ! """#? | | ???????????????????????# """ ! ####? | | ???????????????????????# """ ! #???? | | ???????????????????????+ """ #??? | | ???????????????????????# #??? | | ???????????????????????# #??? | | ???????????????????????# ## #??? | | ???????????????????????# ?#### #??? | | ???????????????????????# ????? #??? | | ?????????????????????? ?????? #??? | | ?????????????????????######??????? #??? | | ?????????????????????????????????? #??? | | ?????????????????????????????????? #??? | | ?????????????????????????????????? ???? | | ?????????????????????????????????? ???? | | ??????????????????????????????????????? | | ??????????????????????????????????????? | | ??????????????????????????????????????? | | ??????????????????????????????????????? | | ??????????????????????????????????????? | | ??????????????????????????????????????? | +----------------------------------------------------+ Best States ------------- Heat Dissipation 25 Energy Generation 14 Energy Capacity 160 Matter Stores 300 Matter Capacity 300 Sight Range 16 Terrain Scan Density 10 Armor Coverage 225 Weapon Shielding 33 Evasion (%) 50 Item Schematics ----------------- Lgt. Assault Rifle | -9/Materials | Scanalyzed Robot Schematics ------------------ None Fabricated ------------ Nothing Alien Tech Used ----------------- None Achievements -------------- None Challenges ------------ None RPGLIKE | -11 -10 -10 -9 --------- Run | Scr Mat Min Mat Levels Raised 3 | . . 1 2 XP Earned 8008 | 3000 835 1775 2398 XP Spent 5850 | . 1250 3200 1400 Upgrades 11 | . 3 6 2 Propulsion Slot 1 | . 1 . . Weapon Slot 1 | . . . 1 Inventory Capacity 2 | . 2 . . Ranged Accuracy 6 | . . 5 1 KI Damage % 1 | . . 1 . Protomatter Created 198 | . 92 64 42 Integrity Restored 385 | . 193 192 . Core 385 | . 193 192 . Protomatter Decayed 27 | . 27 . . Game ------ Seed GreatSmartbombCleaver Manual? 0 Play Time 00:17:13 Cumulative 6.1 hours Start 2019.12.21 @ 14:37:52 End 2019.12.21 @ 14:53:02 Sessions 1 Manual Loads 0 Difficulty Rogue Special Mode Winter2019/RPGLIKE Game No. 12 Rogue 12 Adventurer 0 Explorer 0 Win Type - Total 0 Types 0/0/0/0/0/0/0 Lore% 5 Gallery% 10 Achievement% 11 Wizard Run 0 Options --------- ASCII 0 Keyboard 0 Movement Mouse Keybinds 0 Fullscreen 2 Font 18/SmallcapsGlow Map View 76x50 Tactical HUD 1 Map Filters NONE Filters NONE Steam 1 RUN: 90cd8f0f-f243-4df6-8f8f-4eb2f6c88b9b